fUSD/lending_fUSD_20240105
["ID","MTS","AMOUNT","RATE_DAILY","PERIOD"]
[310272997,1704435041034,-1152.43388324,0.00023,2]
[310273027,1704435041518,-145216.05010264,0.00023,2]
[310273028,1704435041569,-19654.57921856,0.00023,2]
[310273029,1704435041683,-555.900003,0.00023,2]
[310273057,1704435043344,-2185.9,0.00023,2]
[310273058,1704435043356,-6062.67981086,0.00023,2]
[310273059,1704435043377,-157.72055272,0.00022579,2]
[310273060,1704435043387,-10817.67879399,0.00023,2]
[310273061,1704435043403,-57908.85515246,0.00023,2]
[310273062,1704435043458,-8940.13693686,0.00023,2]
[310273063,1704435043470,-174683.05420106,0.00023,2]
[310273064,1704435043482,-816613.34207691,0.00023,2]
[310273065,1704435043521,-2780.7433283,0.00023,2]
[310273066,1704435043533,-11947.9495684,0.00023,2]
[310273067,1704435043550,-570.90058479,0.00023,2]
[310273081,1704435046202,-348.77523253,0.000229,2]
[310273082,1704435046216,-199.95611167,0.000229,2]
[310273083,1704435046224,-5335.22388833,0.00023,2]
[310273084,1704435046236,-715.14469,0.00023,2]
[310273085,1704435046248,-666.68339019,0.00023,2]
[310273086,1704435046259,-2283.88972109,0.00023,2]
[310273087,1704435046271,-1481.86202736,0.00023,2]
[310273088,1704435046365,-1463.74989817,0.00023,2]
[310273094,1704435423838,344.9,0.00021524,2]
[310273096,1704435941802,344.24,0.00020405,2]
[310273097,1704435942844,166.74,0.00022418,2]
[310273098,1704436023347,153.52,0.00022122,2]
[310273099,1704436080134,633.56,0.00021969,2]
[310273100,1704436108747,175.02,0.00021969,2]
[310273104,1704436209027,-159.96749623,0.00022597,2]
[310273105,1704436209049,-344.24,0.00022669,2]
[310273106,1704436209070,-2996.74897427,0.00022674,2]
[310273107,1704436209091,-153.52,0.00022675,2]
[310273108,1704436209111,-2057.2007,0.00022697,2]
[310273109,1704436209131,-298.5341,0.00022697,2]
[310273110,1704436209155,-1000.0,0.00022697,2]
[310273111,1704436209176,-282.38193928,0.00022698,2]
[310273112,1704436209196,-2528.8919685,0.00022698,2]
[310273113,1704436209219,-159.96749623,0.00022749,2]
[310273114,1704436209240,-282.38193928,0.00022749,2]
[310273115,1704436209261,-329.11588313,0.00022795,2]
[310273116,1704436209282,-229.46032923,0.00022795,2]
[310273117,1704436209303,-337.29156998,0.00022796,2]
[310273118,1704436209324,-288840.29760387,0.00022797,2]
[310273123,1704436232584,-625.79912,0.00022621,2]
[310273124,1704436232596,-176.58088,0.00022621,2]
[310273125,1704436232605,-623.41912,0.00022698,2]
[310273126,1704436232645,-639.08026827,0.00022698,2]
[310273127,1704436232654,-307.124782,0.00022698,2]
[310273128,1704436232663,-1262.49938824,0.00022729,2]
[310273129,1704436232672,-1262.49938824,0.0002276,2]
[310273130,1704436232681,-1262.49938824,0.00022791,2]
[310273131,1704436232690,-2996.74897427,0.00022796,2]
[310273132,1704436232699,-751.7905836,0.00022797,2]
[310273163,1704436241560,-1000.0,0.00022797,2]
[310273164,1704436241573,-763671.83328633,0.00022797,2]
[310273165,1704436241582,-245000.0,0.00022798,2]
[310273166,1704436241592,-7500.0,0.00022798,2]
[310273167,1704436241602,-282.38193928,0.00022799,2]
[310273168,1704436241611,-307.124782,0.00022799,2]
[310273170,1704436241620,-1262.49938824,0.00022821,2]
[310273172,1704436241633,-282.38193928,0.0002285,2]
[310273174,1704436241643,-1262.49938824,0.00022852,2]
[310273176,1704436241652,-1262.49938824,0.00022883,2]
[310273178,1704436241662,-37606.5221,0.00022899,2]
[310273180,1704436241672,-100000.0,0.00022899,2]
[310273182,1704436241681,-382.8454,0.00022899,2]
[310273184,1704436241691,-799.9499,0.00022899,2]
[310273186,1704436241702,-159.96749623,0.000229,2]
[310273188,1704436241711,-282.38193928,0.000229,2]
[310273190,1704436241721,-714.9060867,0.000229,2]
[310273192,1704436241730,-322.33048154,0.000229,2]
[310273193,1704436241739,-307.124782,0.000229,2]
[310273194,1704436241749,-191.64087655,0.000229,2]
[310273195,1704436241760,-714.90608668,0.00022931,2]
[310273196,1704436241770,-714.90608668,0.00022961,2]
[310273197,1704436241781,-355.21768734,0.00022987,2]
[310273198,1704436241791,-165.4,0.00022995,2]
[310273199,1704436241801,-155.33348644,0.00022997,2]
[310273201,1704436241811,-771.20715513,0.00022998,2]
[310273202,1704436241820,-278.90747643,0.00022998,2]
[310273203,1704436241830,-395.97118411,0.00022999,2]
[310273204,1704436241864,-150.0,0.00022999,2]
[310273205,1704436241873,-150.0,0.00022999,2]
[310273206,1704436241883,-4187711.34453005,0.00023,2]
[310273207,1704436241895,-558918.35678911,0.00023,2]
[310273208,1704436241905,-931.13114601,0.00023,2]
[310273209,1704436241915,-124271.2737968,0.00023,2]
[310273210,1704436241927,-578914.19288253,0.00023,2]
[310273221,1704436243728,-2377.80000004,0.00023,2]
[310273228,1704436345370,727.58510823,0.00021,2]
[310273229,1704436353575,218.92630319,0.00022,2]
[310273230,1704436357026,3180.66829188,0.00022077,2]
[310273231,1704436365351,173.16767109,0.00021,2]
[310273232,1704436373237,3033.081686,0.0002248,2]
[310273233,1704436385902,394.29,0.00022083,2]
[310273234,1704436403021,2254.4987316,0.00022077,2]
[310273235,1704436403044,252.73499324,0.00022077,2]
[310273236,1704436436557,160.23160113,0.00022494,2]
[310273237,1704436591037,359.77442061,0.00018398,2]
[310273238,1704436642324,170.84,0.00018116,2]
[310273239,1704436684482,202.0,0.00021945,2]
[310273240,1704436786435,1168.82,0.00022354,2]
[310273241,1704436814598,258.97,0.00022328,2]
[310273242,1704436816930,1000.0,0.0002259,23]
[310273243,1704436820093,479.0337,0.00022491,2]
[310273244,1704436845623,1622.11,0.00022369,2]
[310273245,1704436864251,520.5,0.00020451,2]
[310273246,1704436879081,23900.0,0.00022328,2]
[310273247,1704436883366,164.55,0.00022343,2]
[310273248,1704436886689,169.46,0.00022214,2]
[310273249,1704436891139,591.06,0.00022214,2]
[310273250,1704436950049,490.31,0.00022213,2]
[310273251,1704436958711,32879.66,0.00022213,2]
[310273252,1704436992657,155.08,0.00022407,2]
[310273253,1704437004633,200.0,0.00022186,2]
[310273254,1704437047497,181.7,0.00022174,2]
[310273255,1704437137091,587.2,0.00022208,2]
[310273256,1704437175153,200.0,0.00022208,2]
[310273257,1704437181314,250.0,0.00022174,2]
[310273258,1704437197627,153.44,0.00022377,2]
[310273259,1704437197822,153.44,0.00022494,2]
[310273260,1704437292035,1090.89,0.0002209,2]
[310273261,1704437348326,23900.0,0.00022097,2]
[310273262,1704437358197,164.76506265,0.00022484,2]
[310273263,1704437368869,-202.0,0.0002253,2]
[310273264,1704437368890,-2996.74897427,0.00022583,2]
[310273265,1704437368910,-708.0,0.00022584,2]
[310273266,1704437368931,-164.55,0.00022591,2]
[310273267,1704437368950,-153.44,0.00022611,2]
[310273268,1704437368971,-164.76506262,0.00022623,2]
[310273269,1704437368991,-150.0,0.00022696,2]
[310273270,1704437369012,-7080.49596311,0.00022697,2]
[310273271,1704437385971,494.47,0.00020379,2]
[310273286,1704437431549,-494.47,0.00022643,2]
[310273287,1704437431559,-1462.7957746,0.00022697,2]
[310273288,1704437431664,-3779.20416229,0.00022697,2]
[310273289,1704437431673,-200.0,0.0002272,2]
[310273290,1704437431682,-153.44,0.00022727,2]
[310273291,1704437431692,-164.76506262,0.00022761,2]
[310273292,1704437431702,-150.5788,0.0002277,2]
[310273293,1704437431712,-164.55,0.00022839,2]
[310273294,1704437431723,-153.44,0.00022844,2]
[310273295,1704437431737,-157.81242353,0.00022899,2]
[310273296,1704437431748,-214.8869877,0.000229,2]
[310273297,1704437431759,-164.76506262,0.000229,2]
[310273298,1704437431768,-149.09577484,0.0002296,2]
[310273299,1704437431781,-4.34422516,0.0002296,2]
[310273300,1704437431791,-278.31410173,0.00022997,2]
[310273301,1704437431801,-330.2511879,0.00022997,2]
[310273302,1704437431833,-571.20551196,0.00022997,2]
[310273304,1704437437749,-115.97595934,0.00022997,2]
[310273305,1704437437760,-579.61035159,0.00022997,2]
[310273306,1704437437769,-298.10140121,0.00022997,2]
[310273307,1704437437780,-1762.794775,0.00022997,2]
[310273308,1704437437789,-2040.44269477,0.00022997,2]
[310273309,1704437437799,-530.98245295,0.00022998,2]
[310273310,1704437437808,-2671.42916514,0.00022998,2]
[310273311,1704437437821,-61.43083486,0.00022998,2]
[310273312,1704437437831,-201.64184085,0.00022999,2]
[310273313,1704437437952,-1054062.27963295,0.00022999,2]
[310273314,1704437437961,-395.97118411,0.00022999,2]
[310273315,1704437437970,-3133949.0648971,0.00023,2]
[310273316,1704437437981,-283070.4348064,0.00023,2]
[310273317,1704437437992,-2616.19735922,0.00023,2]
[310273318,1704437438001,-931.13114601,0.00023,2]
[310273319,1704437438011,-368.62766188,0.00023,2]
[310273320,1704437438020,-519.90368084,0.00023,2]
[310273321,1704437438029,-207.68498122,0.00023,2]
[310273322,1704437438039,-200.0,0.00023,2]
[310273323,1704437438049,-8237.8209207,0.00023023,2]
[310273324,1704437438059,-1090.89,0.00023069,2]
[310273325,1704437438068,-153.44,0.00023077,2]
[310273326,1704437438077,-164.55,0.00023087,2]
[310273327,1704437438086,-202.0,0.00023159,2]
[310273328,1704437438095,-153.44,0.00023194,2]
[310273329,1704437438104,-153.52,0.00023228,2]
[310273330,1704437438113,-153.44,0.0002331,2]
[310273331,1704437438122,-164.55,0.00023336,2]
[310273332,1704437438132,-211.84,0.00023356,2]
[310273333,1704437438141,-158.24,0.00023371,2]
[310273334,1704437438150,-153.44,0.00023427,2]
[310273335,1704437438159,-259.77,0.00023456,2]
[310273336,1704437438169,-153.44,0.00023543,2]
[310273337,1704437438179,-164.55,0.00023584,2]
[310273338,1704437438188,-153.52,0.00023781,2]
[310273339,1704437438197,-164.55,0.00023832,2]
[310273340,1704437438206,-155.53,0.00023934,2]
[310273341,1704437438215,-1090.89,0.00024047,2]
[310273342,1704437438224,-164.55,0.0002408,2]
[310273343,1704437438233,-164.55,0.00024329,2]
[310273344,1704437438242,-153.52,0.00024334,2]
[310273345,1704437438251,-181.7,0.00024391,2]
[310273346,1704437438260,-211.84,0.00024524,2]
[310273347,1704437438269,-164.55,0.00024577,2]
[310273348,1704437438278,-250.0,0.00024658,2]
[310273349,1704437438288,-157.81242353,0.0002478,2]
[310273350,1704437438297,-202.0,0.00024834,4]
[310273351,1704437438306,-201.21,0.00024896,2]
[310273352,1704437438315,-494.47,0.00024907,2]
[310273353,1704437438324,-1580.1889945,0.00025,2]
[310273354,1704437438334,-1387.83853168,0.00025,2]
[310273355,1704437438343,-432.37787933,0.00025,2]
[310273356,1704437438352,-1251.82318433,0.00025,2]
[310273357,1704437438362,-584.11997907,0.00025,2]
[310273358,1704437438370,-1090.89,0.00025026,2]
[310273359,1704437438380,-158.24,0.00025569,2]
[310273360,1704437438389,-157.59,0.00025575,2]
[310273361,1704437438399,-211.84,0.00025691,2]
[310273362,1704437438409,-2455.0,0.000257,2]
[310273363,1704437438418,-28896.0,0.000257,2]
[310273364,1704437438427,-1000.0,0.00025968,2]
[310273365,1704437438437,-1090.89,0.00026004,2]
[310273366,1704437438446,-150.0,0.00026079,2]
[310273367,1704437438455,-155.53,0.00026328,2]
[310273368,1704437438464,-153.93,0.00026334,2]
[310273369,1704437438473,-11807.82590923,0.000264,2]
[310273370,1704437438482,-202.0,0.00026509,7]
[310273371,1704437438492,-181.7,0.00026609,2]
[310273372,1704437438501,-153.66,0.00026659,2]
[310273373,1704437438510,-157.81242353,0.0002666,3]
[310273374,1704437438519,-1254.98,0.00026823,2]
[310273375,1704437438529,-938.33,0.00026823,2]
[310273376,1704437438538,-211.84,0.00026859,2]
[310273377,1704437438547,-1090.89,0.00026983,2]
[310273378,1704437438557,-250.0,0.00027,3]
[310273379,1704437438566,-342.0,0.00027,2]
[310273380,1704437438575,-494.47,0.00027171,2]
[310273381,1704437438584,-153.66,0.00027192,2]
[310273382,1704437438593,-293.41,0.00027234,2]
[310273383,1704437438602,-293.41,0.00027234,2]
[310273384,1704437438612,-293.41,0.00027234,2]
[310273385,1704437438621,-155.0,0.00027397,2]
[310273386,1704437438631,-250.0,0.00027397,2]
[310273387,1704437438641,-342.0,0.00027397,4]
[310273388,1704437438650,-186.61,0.00027397,2]
[310273389,1704437438659,-186.61,0.00027556,2]
[310273390,1704437438669,-186.61,0.00027714,2]
[310273391,1704437438678,-153.66,0.00027725,2]
[310273392,1704437438687,-158.24,0.00027767,2]
[310273393,1704437438697,-186.61,0.00027872,2]
[310273394,1704437438707,-2047.17,0.00027945,2]
[310273395,1704437438718,-1301.66,0.00027945,2]
[310273396,1704437438727,-1090.89,0.00027961,2]
[310273397,1704437438740,-157.39326305,0.00028,2]
[310273398,1704437438749,-211.84,0.00028027,2]
[310273399,1704437438760,-186.61,0.0002803,2]
[310273400,1704437438769,-150.5,0.0002811,2]
[310273401,1704437438778,-152.1,0.0002811,2]
[310273402,1704437438788,-151.22,0.0002811,2]
[310273403,1704437438797,-409.54,0.0002811,2]
[310273404,1704437438806,-150.0,0.0002811,2]
[310273405,1704437438816,-150.0,0.0002811,2]
[310273406,1704437438830,-301.25,0.0002811,2]
[310273407,1704437438840,-320.36,0.0002811,2]
[310273408,1704437438849,-150.0,0.0002811,2]
[310273409,1704437438857,-202.0,0.00028183,9]
[310273410,1704437438867,-186.61,0.00028189,2]
[310273411,1704437438876,-499.76,0.00028247,2]
[310273412,1704437438885,-276.9,0.00028247,2]
[310273413,1704437438895,-400.46,0.00028247,2]
[310273414,1704437438906,-400.46,0.00028247,2]
[310273415,1704437438915,-400.46,0.00028247,2]
[310273416,1704437438924,-400.46,0.00028247,2]
[310273417,1704437438933,-400.46,0.00028247,2]
[310273418,1704437438942,-400.46,0.00028247,2]
[310273419,1704437438951,-400.46,0.00028247,2]
[310273420,1704437438961,-400.46,0.00028247,2]
[310273421,1704437438970,-400.46,0.00028247,2]
[310273422,1704437438979,-400.46,0.00028247,2]
[310273423,1704437438988,-400.46,0.00028247,2]
[310273424,1704437438997,-397.86,0.00028247,2]
[310273425,1704437439008,-153.66,0.00028258,2]
[310273426,1704437439018,-186.61,0.00028347,2]
[310273427,1704437439027,-186.61,0.00028505,2]
[310273428,1704437439036,-157.81242353,0.00028541,4]
[310273429,1704437439046,-186.61,0.00028664,2]
[310273430,1704437439055,-755.916,0.00028763,2]
[310273431,1704437439064,-207.55,0.00028763,2]
[310273432,1704437439073,-833.0,0.00028763,2]
[310273433,1704437439082,-950.18,0.00028763,2]
[310273434,1704437439091,-1254.0,0.00028763,2]
[310273435,1704437439100,-1350.876,0.00028763,2]
[310273436,1704437439110,-1927.0,0.00028763,2]
[310273437,1704437439120,-197.36,0.00028763,2]
[310273438,1704437439130,-759.412,0.00028763,2]
[310273439,1704437439139,-2266.0,0.00028763,2]
[310273440,1704437439148,-592.915,0.00028763,2]
[310273441,1704437439158,-19644.0,0.00028763,2]
[310273442,1704437439167,-7368.346,0.00028763,2]
[310273443,1704437439177,-664.267,0.00028763,2]
[310273444,1704437439187,-155.0,0.00028767,2]
[310273445,1704437439197,-153.66,0.00028792,2]
[310273446,1704437439205,-710.67,0.00028797,2]
[310273447,1704437439215,-186.61,0.00028822,2]
[310273448,1704437439225,-500.0,0.00028828,2]
[310273449,1704437439235,-114396.55931732,0.00028855,2]
[310273450,1704437439245,-5044.90501324,0.00028887,2]
[310273451,1704437439256,-150.0,0.00028932,2]
[310273452,1704437439265,-407.27,0.00028932,2]
[310273453,1704437439274,-150.0,0.00028932,2]
[310273454,1704437439282,-150.0,0.00028932,2]
[310273455,1704437439292,-150.0,0.00028932,2]
[310273456,1704437439301,-150.0,0.00028932,2]
[310273457,1704437439310,-150.0,0.00028932,2]
[310273458,1704437439319,-407.27,0.00028932,2]
[310273459,1704437439328,-293.41,0.00028932,2]
[310273460,1704437439337,-293.41,0.00028932,2]
[310273461,1704437439347,-1090.89,0.00028939,2]
[310273462,1704437439357,-129007.34190617,0.00029,2]
[310273463,1704437439366,-300.0,0.00029,3]
[310273464,1704437439375,-184.17,0.00029,2]
[310273465,1704437439383,-185.0,0.00029036,2]
[310273466,1704437439393,-214.88698768,0.00029208,2]
[310273467,1704437439404,-1000.0,0.00029214,2]
[310273468,1704437439413,-153.66,0.00029325,2]
[310273469,1704437439423,-150.0,0.0002936,2]
[310273470,1704437439434,-150.0,0.00029369,2]
[310273471,1704437439444,-150.0,0.00029372,2]
[310273472,1704437439453,-150.0,0.00029372,2]
[310273473,1704437439463,-150.0,0.00029385,2]
[310273474,1704437439472,-150.0,0.00029388,2]
[310273475,1704437439482,-150.0,0.00029388,2]
[310273476,1704437439492,-150.0,0.0002939,2]
[310273477,1704437439501,-150.0,0.00029395,2]
[310273478,1704437439511,-150.0,0.00029404,2]
[310273479,1704437439519,-150.0,0.00029405,2]
[310273480,1704437439528,-150.0,0.00029408,2]
[310273481,1704437439538,-150.0,0.00029411,2]
[310273482,1704437439548,-150.0,0.00029413,2]
[310273483,1704437439557,-500.0,0.00029414,2]
[310273484,1704437439566,-200.0,0.00029414,2]
[310273485,1704437439575,-200.0,0.00029414,2]
[310273486,1704437439585,-500.0,0.00029415,2]
[310273487,1704437439594,-500.0,0.00029415,2]
[310273488,1704437439604,-200.0,0.00029415,2]
[310273489,1704437439613,-200.0,0.00029415,2]
[310273490,1704437439623,-200.0,0.00029415,2]
[310273491,1704437439632,-150.0,0.00029417,2]
[310273492,1704437439641,-150.0,0.00029423,2]
[310273493,1704437439651,-153.45562529,0.00029427,2]
[310273494,1704437439661,-150.0,0.00029429,2]
[310273495,1704437439670,-494.47,0.00029435,2]
[310273496,1704437439678,-150.0,0.00029435,2]
[310273497,1704437439689,-150.0,0.00029442,2]
[310273498,1704437439698,-150.0,0.00029443,2]
[310273499,1704437439707,-150.0,0.00029444,2]
[310273500,1704437439937,-150.0,0.00029449,2]
[310273501,1704437439947,-150.0,0.0002945,2]
[310273502,1704437439957,-150.0,0.00029453,2]
[310273503,1704437439968,-150.0,0.00029456,2]
[310273504,1704437439977,-300.0,0.00029461,2]
[310273505,1704437439986,-150.0,0.00029464,2]
[310273506,1704437439995,-150.0,0.00029475,2]
[310273507,1704437440004,-150.0,0.00029476,2]
[310273508,1704437440014,-150.0,0.00029479,2]
[310273509,1704437440023,-150.0,0.00029484,2]
[310273510,1704437440031,-150.0,0.00029488,2]
[310273511,1704437440040,-150.0,0.0002949,2]
[310273512,1704437440050,-150.0,0.00029492,2]
[310273513,1704437440059,-150.0,0.00029494,2]
[310273514,1704437440068,-300.0,0.00029497,2]
[310273515,1704437440078,-150.0,0.00029498,2]
[310273517,1704437440086,-2916.67531417,0.000295,2]
[310273519,1704437440101,-2083.32468583,0.000295,2]
[310273520,1704437440112,-18421.485356,0.000295,2]
[310273521,1704437440122,-150.0,0.00029504,2]
[310273522,1704437440131,-150.0,0.00029507,2]
[310273523,1704437440142,-150.0,0.00029512,2]
[310273524,1704437440152,-150.0,0.00029519,2]
[310273525,1704437440161,-150.0,0.00029524,2]
[310273526,1704437440172,-150.0,0.00029528,2]
[310273527,1704437440181,-150.0,0.00029528,2]
[310273528,1704437440191,-150.0,0.00029529,2]
[310273529,1704437440201,-150.0,0.00029529,2]
[310273530,1704437440210,-150.0,0.00029535,2]
[310273531,1704437440220,-150.0,0.0002954,2]
[310273532,1704437440229,-150.0,0.00029546,2]
[310273533,1704437440239,-150.0,0.00029546,2]
[310273534,1704437440249,-307.40170157,0.00029547,2]
[310273535,1704437440259,-150.0,0.00029549,2]
[310273536,1704437440268,-150.0,0.00029552,2]
[310273537,1704437440277,-150.0,0.00029553,2]
[310273538,1704437440286,-150.0,0.00029555,2]
[310273539,1704437440295,-293.41,0.00029558,2]
[310273540,1704437440305,-157.13967025,0.00029558,2]
[310273541,1704437440314,-150.0,0.00029559,2]
[310273542,1704437440323,-150.0,0.00029559,2]
[310273543,1704437440332,-150.0,0.00029562,2]
[310273544,1704437440342,-150.0,0.00029563,2]
[310273545,1704437440351,-150.0,0.00029565,2]
[310273546,1704437440361,-150.0,0.00029571,2]
[310273547,1704437440370,-150.0,0.00029576,2]
[310273548,1704437440379,-150.0,0.00029577,2]
[310273549,1704437440389,-150.0,0.00029577,2]
[310273550,1704437440398,-150.0,0.00029579,2]
[310273551,1704437440407,-150.0,0.0002959,2]
[310273552,1704437440417,-150.0,0.00029595,2]
[310273553,1704437440427,-150.0,0.00029597,2]
[310273554,1704437440437,-500.0,0.000296,2]
[310273555,1704437440446,-1500.0,0.000296,2]
[310273556,1704437440455,-150.0,0.00029604,2]
[310273557,1704437440464,-150.0,0.00029604,2]
[310273558,1704437440473,-150.0,0.00029607,2]
[310273559,1704437440483,-304.96930582,0.00029611,2]
[310273560,1704437440492,-230.87861514,0.00029612,2]
[310273561,1704437440502,-150.0,0.00029614,2]
[310273562,1704437440511,-150.0,0.00029615,2]
[310273563,1704437440521,-150.0,0.00029619,2]
[310273564,1704437440530,-150.0,0.00029621,2]
[310273565,1704437440540,-150.0,0.00029623,2]
[310273566,1704437440549,-150.0,0.0002963,2]
[310273567,1704437440558,-150.0,0.00029631,2]
[310273568,1704437440568,-150.0,0.00029632,2]
[310273569,1704437440577,-5000.0,0.00029633,2]
[310273570,1704437440586,-150.0,0.00029644,2]
[310273571,1704437440595,-150.0,0.00029648,2]
[310273572,1704437440605,-3286.93466783,0.00029651,2]
[310273573,1704437440615,-150.01,0.00029651,2]
[310273574,1704437440625,-200.0,0.00029652,2]
[310273575,1704437440634,-507.31091902,0.00029652,2]
[310273576,1704437440643,-2116.2012918,0.00029653,2]
[310273577,1704437440653,-10569.1914198,0.00029673,2]
[310273578,1704437440662,-94989.4838138,0.00029693,2]
[310273579,1704437440671,-250.0,0.000297,2]
[310273580,1704437440680,-839.95,0.00029753,2]
[310273581,1704437440689,-634.11,0.00029753,2]
[310273582,1704437440698,-150.0,0.00029753,2]
[310273583,1704437440708,-313.61,0.00029753,2]
[310273584,1704437440717,-313.61,0.00029753,2]
[310273585,1704437440726,-407.27,0.00029753,2]
[310273586,1704437440738,-313.61,0.00029753,2]
[310273587,1704437440747,-407.27,0.00029753,2]
[310273588,1704437440756,-407.27,0.00029753,2]
[310273589,1704437440765,-313.61,0.00029753,2]
[310273590,1704437440774,-313.61,0.00029753,2]
[310273591,1704437440783,-313.61,0.00029753,2]
[310273592,1704437440793,-312.25,0.00029753,2]
[310273593,1704437440802,-813.02,0.00029753,2]
[310273594,1704437440811,-407.27,0.00029753,2]
[310273595,1704437440820,-407.27,0.00029753,2]
[310273596,1704437440829,-407.27,0.00029753,2]
[310273597,1704437440839,-407.27,0.00029753,2]
[310273598,1704437440850,-401.87,0.00029753,2]
[310273599,1704437440859,-407.27,0.00029753,2]
[310273600,1704437440868,-2620.48954088,0.00029798,2]
[310273601,1704437440877,-199.7690519,0.00029798,2]
[310273602,1704437440886,-156.24527716,0.00029798,2]
[310273603,1704437440895,-319.98185341,0.00029798,2]
[310273604,1704437440904,-274324.74791963,0.000298,2]
[310273605,1704437440914,-202.0,0.00029858,12]
[310273606,1704437440923,-1090.89,0.00029918,2]
[310273607,1704437440932,-191.33518818,0.00029997,2]
[310273608,1704437440941,-720.85,0.00029998,2]
[310273609,1704437440950,-143479.12260451,0.0003,4]
[310273616,1704437444484,-1235.03233735,0.00022555,2]
[310273617,1704437444497,-731.3592535,0.00022555,2]
[310273618,1704437444515,-574.9799966,0.00022555,2]
[310273619,1704437444527,-410.71421709,0.00022555,2]
[310273620,1704437444553,-6109.49814196,0.00022555,2]
[310273621,1704437444563,-300.02,0.00029651,2]
[310273622,1704437444573,-1166.09734628,0.00029651,2]
[310273623,1704437444732,-2120.83732155,0.00029651,2]
[310273624,1704437444743,-82463.26109879,0.0003,4]
[310273625,1704437444753,-2739.46232473,0.0003,2]
[310273626,1704437444763,-2545.93649865,0.0003,4]
[310273627,1704437444773,-155.0,0.0003,2]
[310273628,1704437444782,-293.56797325,0.0003,2]
[310273629,1704437444792,-1000.0,0.0003,2]
[310273630,1704437444802,-196.427231,0.0003,2]
[310273631,1704437444812,-676.71214579,0.0003,4]
[310273632,1704437444822,-2263.46111869,0.0003,7]
[310273633,1704437444832,-150.616918,0.0003,2]
[310273634,1704437444842,-1369.6,0.0003,5]
[310273635,1704437444852,-508.484674,0.0003,2]
[310273636,1704437444862,-3000.0,0.0003,2]
[310273637,1704437444872,-3000.0,0.0003,2]
[310273638,1704437444882,-3000.0,0.0003,2]
[310273639,1704437444892,-3000.0,0.0003,2]
[310273640,1704437444903,-3000.0,0.0003,2]
[310273641,1704437444913,-3000.0,0.0003,2]
[310273642,1704437444924,-300.0,0.0003,2]
[310273643,1704437444933,-1138.5874086,0.0003,2]
[310273644,1704437444943,-396.30534316,0.000301,2]
[310273645,1704437444954,-153.84,0.00030137,2]
[310273646,1704437444964,-10000.0,0.00030137,2]
[310273647,1704437445297,-7292.69,0.00030137,2]
[310273648,1704437445307,-155.0,0.00030137,2]
[310273649,1704437445317,-400.12,0.00030164,2]
[310273650,1704437445327,-153.19668273,0.00030299,2]
[310273651,1704437445337,-157.59,0.00030386,2]
[310273652,1704437445346,-1000.0,0.00030418,2]
[310273653,1704437445356,-157.81242353,0.00030422,5]
[310273654,1704437445366,-293.41,0.00030575,2]
[310273655,1704437445376,-492.5,0.00030575,2]
[310273656,1704437445384,-293.41,0.00030575,2]
[310273657,1704437445394,-293.41,0.00030575,2]
[310273658,1704437445403,-293.41,0.00030575,2]
[310273659,1704437445416,-293.41,0.00030575,2]
[310273660,1704437445426,-293.41,0.00030575,2]